[Event "Titled Tuesday Blitz November 14 Early 2023"]
[White "Molina, Roberto Junio Brito"]
[Black "UNSTOPPABLE_LEGEND"]
[WhiteFideId "2109450"]
[WhiteElo "2810"]
[BlackElo "2460"]
[Result "1-0"]
[Round "1"]
[TimeControl "180+1"]
[Date "2023.11.14"]
[WhiteClock "0:00:10"]
[BlackClock "0:00:01"]
[Board "84"]

1. d4 {[%clk 0:03:00]}  Nf6 {[%clk 0:02:59]} 2. Nf3 {[%clk 0:03:00]}  d5 {[%clk 0:02:58]} 3. e3 {[%clk 0:03:01]}  c5 {[%clk 0:02:58]} 4. c3 {[%clk 0:03:01]}  e6 {[%clk 0:02:57]} 5. Nbd2 {[%clk 0:03:01]}  Nbd7 {[%clk 0:02:51]} 6. Bd3 {[%clk 0:03:01]}  b6 {[%clk 0:02:51]} 7. O-O {[%clk 0:03:01]}  Bb7 {[%clk 0:02:51]} 8. b3 {[%clk 0:03:00]}  Bd6 {[%clk 0:02:50]} 9. Bb2 {[%clk 0:03:00]}  O-O {[%clk 0:02:50]} 10. c4 {[%clk 0:03:00]}  Rc8 {[%clk 0:02:40]} 11. Qe2 {[%clk 0:03:00]}  Ne4 {[%clk 0:02:31]} 12. Rfd1 {[%clk 0:02:55]}  Qc7 {[%clk 0:02:28]} 13. cxd5 {[%clk 0:02:51]}  exd5 {[%clk 0:02:27]} 14. Rac1 {[%clk 0:02:50]}  Qb8 {[%clk 0:02:26]} 15. Ba6 {[%clk 0:02:43]}  Ndf6 {[%clk 0:02:14]} 16. Bxb7 {[%clk 0:02:37]}  Qxb7 {[%clk 0:02:13]} 17. dxc5 {[%clk 0:02:37]}  bxc5 {[%clk 0:02:12]} 18. Nxe4 {[%clk 0:02:35]}  Nxe4 {[%clk 0:02:13]} 19. Nd2 {[%clk 0:02:31]}  Nxd2 {[%clk 0:02:02]} 20. Rxd2 {[%clk 0:02:31]}  Rfd8 {[%clk 0:02:02]} 21. Qf3 {[%clk 0:02:25]}  Bf8 {[%clk 0:02:00]} 22. Rcd1 {[%clk 0:02:24]}  c4 {[%clk 0:01:56]} 23. bxc4 {[%clk 0:02:23]}  Rxc4 {[%clk 0:01:54]} 24. Bd4 {[%clk 0:02:17]}  Qc7 {[%clk 0:01:38]} 25. g3 {[%clk 0:02:16]}  Rd7 {[%clk 0:01:30]} 26. Kg2 {[%clk 0:02:15]}  Qc6 {[%clk 0:01:28]} 27. h4 {[%clk 0:02:11]}  Bc5 {[%clk 0:01:18]} 28. Rb2 {[%clk 0:01:49]}  Rd8 {[%clk 0:01:09]} 29. Bxc5 {[%clk 0:01:37]}  Rxc5 {[%clk 0:01:09]} 30. Rd4 {[%clk 0:01:29]}  g6 {[%clk 0:00:58]} 31. Rbd2 {[%clk 0:01:26]}  Kg7 {[%clk 0:00:58]} 32. h5 {[%clk 0:01:23]}  Qe6 {[%clk 0:00:53]} 33. Qf4 {[%clk 0:01:18]}  Qf5 {[%clk 0:00:18]} 34. Qxf5 {[%clk 0:00:38]}  gxf5 {[%clk 0:00:19]} 35. Kf3 {[%clk 0:00:37]}  Kf6 {[%clk 0:00:20]} 36. g4 {[%clk 0:00:35]}  fxg4+ {[%clk 0:00:18]} 37. Rxg4 {[%clk 0:00:36]}  Rd6 {[%clk 0:00:15]} 38. Rdd4 {[%clk 0:00:35]}  Ke6 {[%clk 0:00:12]} 39. Rg7 {[%clk 0:00:33]}  h6 {[%clk 0:00:11]} 40. Rf4 {[%clk 0:00:32]}  f5 {[%clk 0:00:09]} 41. Rg6+ {[%clk 0:00:31]}  Ke5 {[%clk 0:00:09]} 42. Rxd6 {[%clk 0:00:31]}  Kxd6 {[%clk 0:00:10]} 43. Rxf5 {[%clk 0:00:31]}  Ke6 {[%clk 0:00:11]} 44. Rf8 {[%clk 0:00:25]}  Rc2 {[%clk 0:00:10]} 45. Rh8 {[%clk 0:00:24]}  Rxa2 {[%clk 0:00:09]} 46. Rxh6+ {[%clk 0:00:25]}  Kf5 {[%clk 0:00:10]} 47. Rd6 {[%clk 0:00:24]}  Ke5 {[%clk 0:00:09]} 48. h6 {[%clk 0:00:21]}  Ra1 {[%clk 0:00:10]} 49. h7 {[%clk 0:00:20]}  Rh1 {[%clk 0:00:10]} 50. Rd7 {[%clk 0:00:19]}  a5 {[%clk 0:00:10]} 51. Ra7 {[%clk 0:00:18]}  a4 {[%clk 0:00:10]} 52. Ke2 {[%clk 0:00:16]}  a3 {[%clk 0:00:09]} 53. f4+ {[%clk 0:00:11]}  Kf5 {[%clk 0:00:09]} 54. Rxa3 {[%clk 0:00:11]}  Rxh7 {[%clk 0:00:07]} 55. Ra8 {[%clk 0:00:11]}  Re7 {[%clk 0:00:03]} 56. Kd3 {[%clk 0:00:11]}  Re4 {[%clk 0:00:04]} 57. Rd8 {[%clk 0:00:10]}  Ke6 {[%clk 0:00:01]} 58. Re8+ {[%clk 0:00:10]} 1-0


[Site "https://www.chess.com"]

[Event "Titled Tuesday Blitz November 14 Early 2023"]
[White "Rakhmanov, Aleksandr"]
[Black "Makaraci, Tunahan"]
[WhiteFideId "4173708"]
[BlackFideId "6356559"]
[WhiteElo "2805"]
[BlackElo "2450"]
[Result "1-0"]
[Round "1"]
[TimeControl "180+1"]
[Date "2023.11.14"]
[WhiteClock "0:00:26"]
[BlackClock "0:00:00"]
[Board "88"]

1. d4 {[%clk 0:03:00]}  d5 {[%clk 0:02:59]} 2. c4 {[%clk 0:02:59]}  e6 {[%clk 0:02:59]} 3. Nc3 {[%clk 0:02:59]}  c5 {[%clk 0:02:59]} 4. e3 {[%clk 0:02:58]}  Nf6 {[%clk 0:02:59]} 5. Nf3 {[%clk 0:02:58]}  a6 {[%clk 0:02:59]} 6. a3 {[%clk 0:02:56]}  dxc4 {[%clk 0:02:59]} 7. Bxc4 {[%clk 0:02:56]}  b5 {[%clk 0:02:59]} 8. Be2 {[%clk 0:02:53]}  Bb7 {[%clk 0:02:58]} 9. O-O {[%clk 0:02:53]}  Nbd7 {[%clk 0:02:58]} 10. a4 {[%clk 0:02:50]}  b4 {[%clk 0:02:50]} 11. Nb1 {[%clk 0:02:51]}  Qc7 {[%clk 0:02:44]} 12. a5 {[%clk 0:02:49]}  Be7 {[%clk 0:02:42]} 13. Nbd2 {[%clk 0:02:47]}  O-O {[%clk 0:02:41]} 14. Nc4 {[%clk 0:02:41]}  Rfd8 {[%clk 0:02:33]} 15. h3 {[%clk 0:02:41]}  Rac8 {[%clk 0:02:29]} 16. b3 {[%clk 0:02:27]}  Ne4 {[%clk 0:02:15]} 17. Bb2 {[%clk 0:02:26]}  Bf6 {[%clk 0:02:15]} 18. Rc1 {[%clk 0:02:23]}  Qb8 {[%clk 0:02:08]} 19. Bd3 {[%clk 0:02:13]}  cxd4 {[%clk 0:01:48]} 20. exd4 {[%clk 0:02:09]}  Bd5 {[%clk 0:01:31]} 21. Re1 {[%clk 0:02:03]}  Nd6 {[%clk 0:01:28]} 22. Qe2 {[%clk 0:01:55]}  Nb5 {[%clk 0:01:14]} 23. Nfe5 {[%clk 0:01:52]}  Bxe5 {[%clk 0:00:51]} 24. dxe5 {[%clk 0:01:45]}  Nc5 {[%clk 0:00:45]} 25. Nb6 {[%clk 0:01:04]}  Nxd3 {[%clk 0:00:34]} 26. Rxc8 {[%clk 0:01:03]}  Rxc8 {[%clk 0:00:28]} 27. Qxd3 {[%clk 0:00:39]}  Rd8 {[%clk 0:00:28]} 28. Qg3 {[%clk 0:00:35]}  Qb7 {[%clk 0:00:23]} 29. Bc1 {[%clk 0:00:34]}  Nc3 {[%clk 0:00:14]} 30. Bg5 {[%clk 0:00:29]}  Re8 {[%clk 0:00:07]} 31. Bf6 {[%clk 0:00:29]}  g6 {[%clk 0:00:00]} 32. Qg5 {[%clk 0:00:26]} 1-0


[Site "https://www.chess.com"]

[Event "Titled Tuesday Blitz November 14 Early 2023"]
[White "Estrada Nieto, Julian"]
[Black "Fier, Alexandr"]
[WhiteFideId "5101018"]
[BlackFideId "2107139"]
[WhiteElo "2450"]
[BlackElo "2801"]
[Result "0-1"]
[Round "1"]
[TimeControl "180+1"]
[Date "2023.11.14"]
[WhiteClock "0:00:00"]
[BlackClock "0:00:47"]
[Board "89"]

1. e4 {[%clk 0:02:58]}  d6 {[%clk 0:03:00]} 2. d4 {[%clk 0:02:57]}  Nf6 {[%clk 0:03:00]} 3. Nc3 {[%clk 0:02:57]}  g6 {[%clk 0:03:01]} 4. Nf3 {[%clk 0:02:58]}  Bg7 {[%clk 0:03:01]} 5. Be2 {[%clk 0:02:57]}  O-O {[%clk 0:03:01]} 6. O-O {[%clk 0:02:58]}  a6 {[%clk 0:03:02]} 7. a4 {[%clk 0:02:57]}  Nc6 {[%clk 0:03:02]} 8. d5 {[%clk 0:02:56]}  Nb4 {[%clk 0:03:02]} 9. a5 {[%clk 0:02:37]}  e6 {[%clk 0:02:58]} 10. Bg5 {[%clk 0:02:24]}  h6 {[%clk 0:02:55]} 11. Bh4 {[%clk 0:02:10]}  g5 {[%clk 0:02:54]} 12. Bg3 {[%clk 0:02:10]}  e5 {[%clk 0:02:33]} 13. h4 {[%clk 0:02:01]}  Nh5 {[%clk 0:02:28]} 14. hxg5 {[%clk 0:01:53]}  Nxg3 {[%clk 0:02:21]} 15. fxg3 {[%clk 0:01:53]}  hxg5 {[%clk 0:02:22]} 16. Nh2 {[%clk 0:01:53]}  f5 {[%clk 0:02:19]} 17. Ra4 {[%clk 0:01:45]}  c5 {[%clk 0:02:18]} 18. exf5 {[%clk 0:01:18]}  Bxf5 {[%clk 0:02:17]} 19. Rxf5 {[%clk 0:01:08]}  Rxf5 {[%clk 0:02:16]} 20. Ne4 {[%clk 0:01:09]}  Bf8 {[%clk 0:01:39]} 21. c3 {[%clk 0:01:07]}  Nc6 {[%clk 0:01:39]} 22. dxc6 {[%clk 0:01:05]}  bxc6 {[%clk 0:01:40]} 23. Bg4 {[%clk 0:01:02]}  Rf6 {[%clk 0:01:38]} 24. Nxf6+ {[%clk 0:00:59]}  Qxf6 {[%clk 0:01:38]} 25. Qf3 {[%clk 0:00:41]}  Qxf3 {[%clk 0:01:37]} 26. Bxf3 {[%clk 0:00:42]}  d5 {[%clk 0:01:37]} 27. Ng4 {[%clk 0:00:34]}  Bg7 {[%clk 0:01:32]} 28. Ra3 {[%clk 0:00:28]}  Rb8 {[%clk 0:01:31]} 29. b3 {[%clk 0:00:20]}  e4 {[%clk 0:01:31]} 30. Be2 {[%clk 0:00:20]}  Bxc3 {[%clk 0:01:30]} 31. Bxa6 {[%clk 0:00:19]}  Bd4+ {[%clk 0:01:23]} 32. Kf1 {[%clk 0:00:18]}  c4 {[%clk 0:01:09]} 33. bxc4 {[%clk 0:00:17]}  Rb1+ {[%clk 0:01:09]} 34. Ke2 {[%clk 0:00:17]}  Rb2+ {[%clk 0:01:10]} 35. Kd1 {[%clk 0:00:16]}  Kf7 {[%clk 0:01:07]} 36. cxd5 {[%clk 0:00:12]}  cxd5 {[%clk 0:01:07]} 37. Be2 {[%clk 0:00:12]}  Ke6 {[%clk 0:01:07]} 38. a6 {[%clk 0:00:12]}  Ba7 {[%clk 0:01:08]} 39. Ne3 {[%clk 0:00:07]}  d4 {[%clk 0:01:03]} 40. Bg4+ {[%clk 0:00:05]}  Ke7 {[%clk 0:01:01]} 41. Nd5+ {[%clk 0:00:05]}  Kd6 {[%clk 0:01:01]} 42. Kc1 {[%clk 0:00:04]}  Rxg2 {[%clk 0:01:00]} 43. Rb3 {[%clk 0:00:04]}  Kxd5 {[%clk 0:00:58]} 44. Rb7 {[%clk 0:00:03]}  Bc5 {[%clk 0:00:59]} 45. Bd7 {[%clk 0:00:02]}  Ra2 {[%clk 0:00:57]} 46. Bb5 {[%clk 0:00:01]}  d3 {[%clk 0:00:57]} 47. Rd7+ {[%clk 0:00:01]}  Ke5 {[%clk 0:00:57]} 48. Bc6 {[%clk 0:00:01]}  Be3+ {[%clk 0:00:48]} 49. Kb1 {[%clk 0:00:01]}  Rxa6 {[%clk 0:00:47]} 50. Rd5+ {[%clk 0:00:01]}  Kf6 {[%clk 0:00:48]} 51. Bb5 {[%clk 0:00:00]}  Rb6 {[%clk 0:00:47]} 0-1


[Site "https://www.chess.com"]

[Event "Titled Tuesday Blitz November 14 Early 2023"]
[White "szachmistrz2500"]
[Black "Narayanan, Srinath"]
[BlackFideId "5018420"]
[WhiteElo "2447"]
[BlackElo "2797"]
[Result "0-1"]
[Round "1"]
[TimeControl "180+1"]
[Date "2023.11.14"]
[WhiteClock "0:02:18"]
[BlackClock "0:01:57"]
[Board "91"]

1. Nf3 {[%clk 0:03:00]}  d5 {[%clk 0:02:58]} 2. g3 {[%clk 0:03:00]}  g6 {[%clk 0:02:57]} 3. Bg2 {[%clk 0:03:00]}  Bg7 {[%clk 0:02:58]} 4. d3 {[%clk 0:03:01]}  e5 {[%clk 0:02:57]} 5. O-O {[%clk 0:03:00]}  Ne7 {[%clk 0:02:57]} 6. e4 {[%clk 0:03:00]}  Nbc6 {[%clk 0:02:57]} 7. c3 {[%clk 0:02:59]}  O-O {[%clk 0:02:57]} 8. b4 {[%clk 0:02:59]}  a6 {[%clk 0:02:56]} 9. a4 {[%clk 0:02:59]}  h6 {[%clk 0:02:54]} 10. Ba3 {[%clk 0:02:58]}  b5 {[%clk 0:02:50]} 11. Nbd2 {[%clk 0:02:54]}  Be6 {[%clk 0:02:48]} 12. Nb3 {[%clk 0:02:53]}  dxe4 {[%clk 0:02:46]} 13. Nfd2 {[%clk 0:02:45]}  exd3 {[%clk 0:02:42]} 14. Nc5 {[%clk 0:02:44]}  Bd5 {[%clk 0:02:41]} 15. Re1 {[%clk 0:02:25]}  Bxg2 {[%clk 0:02:39]} 16. Kxg2 {[%clk 0:02:25]}  Qd5+ {[%clk 0:02:35]} 17. Qf3 {[%clk 0:02:24]}  Qxf3+ {[%clk 0:02:08]} 18. Kxf3 {[%clk 0:02:24]}  f5 {[%clk 0:02:08]} 19. Ne6 {[%clk 0:02:19]}  e4+ {[%clk 0:02:07]} 20. Ke3 {[%clk 0:02:18]}  Nd5# {[%clk 0:01:57]} 0-1


[Site "https://www.chess.com"]

[Event "Titled Tuesday Blitz November 14 Early 2023"]
[White "Rychkov, Oleg"]
[Black "Jesseinkman"]
[WhiteFideId "4122852"]
[WhiteElo "2795"]
[BlackElo "2442"]
[Result "1-0"]
[Round "1"]
[TimeControl "180+1"]
[Date "2023.11.14"]
[WhiteClock "0:00:48"]
[BlackClock "0:00:06"]
[Board "92"]

1. e4 {[%clk 0:03:00]}  e5 {[%clk 0:03:00]} 2. Bc4 {[%clk 0:03:00]}  Nf6 {[%clk 0:02:59]} 3. d3 {[%clk 0:03:00]}  Nc6 {[%clk 0:02:59]} 4. Nc3 {[%clk 0:03:01]}  Bc5 {[%clk 0:02:50]} 5. f4 {[%clk 0:03:00]}  O-O {[%clk 0:02:45]} 6. Nf3 {[%clk 0:03:00]}  exf4 {[%clk 0:02:45]} 7. Bxf4 {[%clk 0:02:59]}  d6 {[%clk 0:02:45]} 8. Na4 {[%clk 0:02:55]}  Na5 {[%clk 0:01:55]} 9. Bb3 {[%clk 0:02:43]}  Nxb3 {[%clk 0:01:52]} 10. axb3 {[%clk 0:02:44]}  Re8 {[%clk 0:01:35]} 11. Nxc5 {[%clk 0:02:43]}  dxc5 {[%clk 0:01:36]} 12. O-O {[%clk 0:02:43]}  Nd7 {[%clk 0:01:31]} 13. Qe1 {[%clk 0:02:42]}  b6 {[%clk 0:01:30]} 14. Qg3 {[%clk 0:02:41]}  c6 {[%clk 0:01:21]} 15. Ne5 {[%clk 0:02:32]}  Nf8 {[%clk 0:00:51]} 16. Nxf7 {[%clk 0:02:28]}  Qd4+ {[%clk 0:00:47]} 17. Be3 {[%clk 0:02:28]}  Qxb2 {[%clk 0:00:46]} 18. Nd6 {[%clk 0:02:05]}  Rd8 {[%clk 0:00:34]} 19. Rac1 {[%clk 0:01:51]}  Be6 {[%clk 0:00:32]} 20. e5 {[%clk 0:01:46]}  Ng6 {[%clk 0:00:30]} 21. c3 {[%clk 0:01:29]}  Qxb3 {[%clk 0:00:27]} 22. h4 {[%clk 0:01:29]}  Qd5 {[%clk 0:00:22]} 23. d4 {[%clk 0:01:27]}  cxd4 {[%clk 0:00:19]} 24. cxd4 {[%clk 0:01:28]}  c5 {[%clk 0:00:20]} 25. h5 {[%clk 0:01:22]}  cxd4 {[%clk 0:00:10]} 26. hxg6 {[%clk 0:01:22]}  dxe3 {[%clk 0:00:09]} 27. gxh7+ {[%clk 0:01:22]}  Kxh7 {[%clk 0:00:09]} 28. Rc7 {[%clk 0:01:22]}  Rd7 {[%clk 0:00:09]} 29. Rxd7 {[%clk 0:00:48]}  Bxd7 {[%clk 0:00:10]} 30. Nf7 {[%clk 0:00:49]}  e2 {[%clk 0:00:07]} 31. Qh4+ {[%clk 0:00:48]}  Kg8 {[%clk 0:00:06]} 32. Qh8# {[%clk 0:00:48]} 1-0


[Site "https://www.chess.com"]

[Event "Titled Tuesday Blitz November 14 Early 2023"]
[White "Idani, Pouya"]
[Black "ATM622"]
[WhiteFideId "12510130"]
[WhiteElo "2792"]
[BlackElo "2437"]
[Result "1-0"]
[Round "1"]
[TimeControl "180+1"]
[Date "2023.11.14"]
[WhiteClock "0:00:30"]
[BlackClock "0:00:33"]
[Board "94"]

1. e4 {[%clk 0:03:00]}  c6 {[%clk 0:03:00]} 2. d4 {[%clk 0:02:58]}  d5 {[%clk 0:03:00]} 3. exd5 {[%clk 0:02:55]}  cxd5 {[%clk 0:03:00]} 4. Bd3 {[%clk 0:02:56]}  Nc6 {[%clk 0:03:00]} 5. c3 {[%clk 0:02:56]}  Qc7 {[%clk 0:03:00]} 6. h3 {[%clk 0:02:55]}  Nf6 {[%clk 0:02:59]} 7. Nf3 {[%clk 0:02:52]}  g6 {[%clk 0:02:59]} 8. O-O {[%clk 0:02:52]}  Bf5 {[%clk 0:02:59]} 9. Bb5 {[%clk 0:02:52]}  Bg7 {[%clk 0:02:58]} 10. Re1 {[%clk 0:02:51]}  O-O {[%clk 0:02:58]} 11. Be3 {[%clk 0:02:51]}  Rac8 {[%clk 0:02:55]} 12. Nbd2 {[%clk 0:02:48]}  h6 {[%clk 0:02:49]} 13. Nb3 {[%clk 0:02:37]}  a6 {[%clk 0:02:42]} 14. Bxc6 {[%clk 0:02:35]}  Qxc6 {[%clk 0:02:43]} 15. Bf4 {[%clk 0:02:31]}  Ne4 {[%clk 0:02:39]} 16. Nfd2 {[%clk 0:02:25]}  g5 {[%clk 0:02:28]} 17. Bh2 {[%clk 0:02:23]}  Rfe8 {[%clk 0:02:21]} 18. Qe2 {[%clk 0:01:59]}  Qb6 {[%clk 0:02:11]} 19. Nxe4 {[%clk 0:01:37]}  Bxe4 {[%clk 0:02:12]} 20. Nc5 {[%clk 0:01:31]}  Bg6 {[%clk 0:02:09]} 21. Nd7 {[%clk 0:01:27]}  Qb5 {[%clk 0:02:07]} 22. Qxb5 {[%clk 0:01:26]}  axb5 {[%clk 0:02:08]} 23. Nb6 {[%clk 0:01:22]}  Rc6 {[%clk 0:02:00]} 24. Nxd5 {[%clk 0:01:22]}  e6 {[%clk 0:01:55]} 25. Nc7 {[%clk 0:01:20]}  Rd8 {[%clk 0:01:44]} 26. Nxb5 {[%clk 0:01:19]}  Bd3 {[%clk 0:01:43]} 27. a4 {[%clk 0:01:19]}  Ra8 {[%clk 0:01:42]} 28. Nd6 {[%clk 0:01:00]}  b6 {[%clk 0:01:36]} 29. Re3 {[%clk 0:00:53]}  Bc2 {[%clk 0:01:34]} 30. Be5 {[%clk 0:00:49]}  Rxa4 {[%clk 0:01:30]} 31. Rxa4 {[%clk 0:00:49]}  Bxa4 {[%clk 0:01:31]} 32. Ne8 {[%clk 0:00:48]}  Bxe5 {[%clk 0:01:28]} 33. dxe5 {[%clk 0:00:49]}  Rc5 {[%clk 0:01:16]} 34. Nf6+ {[%clk 0:00:49]}  Kg7 {[%clk 0:01:15]} 35. Kh2 {[%clk 0:00:49]}  Kg6 {[%clk 0:01:11]} 36. g4 {[%clk 0:00:49]}  Bc6 {[%clk 0:01:03]} 37. Kg3 {[%clk 0:00:47]}  Rc4 {[%clk 0:00:56]} 38. b3 {[%clk 0:00:41]}  Rc5 {[%clk 0:00:55]} 39. h4 {[%clk 0:00:41]}  gxh4+ {[%clk 0:00:53]} 40. Kxh4 {[%clk 0:00:41]}  Bd5 {[%clk 0:00:49]} 41. c4 {[%clk 0:00:32]}  Bc6 {[%clk 0:00:47]} 42. f4 {[%clk 0:00:33]}  b5 {[%clk 0:00:46]} 43. Rd3 {[%clk 0:00:30]}  bxc4 {[%clk 0:00:33]} 44. Rd8 {[%clk 0:00:30]}  h5 {[%clk 0:00:33]} 45. Rg8+ {[%clk 0:00:30]}  Kh6 {[%clk 0:00:33]} 46. g5# {[%clk 0:00:30]} 1-0


[Site "https://www.chess.com"]

[Event "Titled Tuesday Blitz November 14 Early 2023"]
[White "Mazurkiewicz, Michal"]
[Black "Suyarov, Mukhammadzokhid"]
[WhiteFideId "1124943"]
[BlackFideId "14210495"]
[WhiteElo "2437"]
[BlackElo "2787"]
[Result "0-1"]
[Round "1"]
[TimeControl "180+1"]
[Date "2023.11.14"]
[WhiteClock "0:00:00"]
[BlackClock "0:00:19"]
[Board "95"]

1. e4 {[%clk 0:02:59]}  e5 {[%clk 0:02:56]} 2. f3 {[%clk 0:03:00]}  Bc5 {[%clk 0:02:52]} 3. Ne2 {[%clk 0:02:52]}  Nc6 {[%clk 0:02:50]} 4. c3 {[%clk 0:02:52]}  d5 {[%clk 0:02:46]} 5. d4 {[%clk 0:02:52]}  exd4 {[%clk 0:02:43]} 6. cxd4 {[%clk 0:02:49]}  Bb4+ {[%clk 0:02:43]} 7. Bd2 {[%clk 0:02:19]}  dxe4 {[%clk 0:02:35]} 8. fxe4 {[%clk 0:02:12]}  Qh4+ {[%clk 0:02:21]} 9. Ng3 {[%clk 0:02:12]}  Bd6 {[%clk 0:02:17]} 10. e5 {[%clk 0:02:09]}  Be7 {[%clk 0:02:16]} 11. Be3 {[%clk 0:01:43]}  Nh6 {[%clk 0:02:07]} 12. Bb5 {[%clk 0:01:23]}  Nf5 {[%clk 0:01:49]} 13. Bf2 {[%clk 0:01:23]}  Nxg3 {[%clk 0:01:42]} 14. Bxg3 {[%clk 0:01:24]}  Qe4+ {[%clk 0:01:41]} 15. Kf2 {[%clk 0:01:02]}  O-O {[%clk 0:01:00]} 16. Bxc6 {[%clk 0:01:01]}  bxc6 {[%clk 0:01:00]} 17. Re1 {[%clk 0:01:00]}  Qg6 {[%clk 0:00:54]} 18. Nc3 {[%clk 0:00:57]}  Rb8 {[%clk 0:00:51]} 19. b3 {[%clk 0:00:50]}  Bg4 {[%clk 0:00:50]} 20. Qb1 {[%clk 0:00:32]}  Bb4 {[%clk 0:00:44]} 21. Re3 {[%clk 0:00:24]}  c5 {[%clk 0:00:33]} 22. d5 {[%clk 0:00:13]}  c4 {[%clk 0:00:28]} 23. Ne4 {[%clk 0:00:08]}  Ba5 {[%clk 0:00:20]} 24. h3 {[%clk 0:00:05]}  Bf5 {[%clk 0:00:19]} 25. Ke2 {[%clk 0:00:00]}  Bb6 {[%clk 0:00:19]} 0-1


[Site "https://www.chess.com"]

[Event "Titled Tuesday Blitz November 14 Early 2023"]
[White "Remolar Gallen, Jose"]
[Black "Llorente Zaro, Alfonso"]
[WhiteFideId "2215187"]
[BlackFideId "2254131"]
[WhiteElo "2431"]
[BlackElo "2776"]
[Result "0-1"]
[Round "1"]
[TimeControl "180+1"]
[Date "2023.11.14"]
[WhiteClock "0:00:22"]
[BlackClock "0:00:14"]
[Board "99"]

1. e4 {[%clk 0:03:00]}  c5 {[%clk 0:02:51]} 2. Nf3 {[%clk 0:03:01]}  Nc6 {[%clk 0:02:47]} 3. Bb5 {[%clk 0:03:00]}  Na5 {[%clk 0:02:46]} 4. O-O {[%clk 0:02:58]}  a6 {[%clk 0:02:45]} 5. Be2 {[%clk 0:02:59]}  e6 {[%clk 0:02:46]} 6. c3 {[%clk 0:02:56]}  Nf6 {[%clk 0:02:45]} 7. e5 {[%clk 0:02:56]}  Nd5 {[%clk 0:02:45]} 8. d4 {[%clk 0:02:56]}  cxd4 {[%clk 0:02:43]} 9. cxd4 {[%clk 0:02:57]}  b5 {[%clk 0:02:43]} 10. Bg5 {[%clk 0:02:52]}  Qb6 {[%clk 0:02:41]} 11. Nbd2 {[%clk 0:02:50]}  h6 {[%clk 0:02:37]} 12. Bh4 {[%clk 0:02:49]}  Bb7 {[%clk 0:02:38]} 13. Re1 {[%clk 0:02:46]}  Rc8 {[%clk 0:02:36]} 14. Ne4 {[%clk 0:02:40]}  Nf4 {[%clk 0:02:15]} 15. Bf1 {[%clk 0:02:39]}  Bb4 {[%clk 0:01:54]} 16. a3 {[%clk 0:02:15]}  Bf8 {[%clk 0:01:45]} 17. Rc1 {[%clk 0:01:53]}  Rxc1 {[%clk 0:01:21]} 18. Qxc1 {[%clk 0:01:52]}  Ng6 {[%clk 0:01:15]} 19. Bg3 {[%clk 0:01:49]}  Be7 {[%clk 0:01:12]} 20. b4 {[%clk 0:01:41]}  Bxe4 {[%clk 0:00:59]} 21. Rxe4 {[%clk 0:01:24]}  Qc6 {[%clk 0:01:00]} 22. Qxc6 {[%clk 0:00:51]}  Nxc6 {[%clk 0:01:00]} 23. Bd3 {[%clk 0:00:51]}  h5 {[%clk 0:00:41]} 24. h4 {[%clk 0:00:48]}  O-O {[%clk 0:00:41]} 25. Re1 {[%clk 0:00:49]}  Rc8 {[%clk 0:00:38]} 26. Rc1 {[%clk 0:00:49]}  Bd8 {[%clk 0:00:34]} 27. Be4 {[%clk 0:00:37]}  Nge7 {[%clk 0:00:33]} 28. Nd2 {[%clk 0:00:33]}  Bb6 {[%clk 0:00:28]} 29. Nb3 {[%clk 0:00:30]}  Nxd4 {[%clk 0:00:20]} 30. Rxc8+ {[%clk 0:00:30]}  Nxc8 {[%clk 0:00:20]} 31. Nxd4 {[%clk 0:00:31]}  Bxd4 {[%clk 0:00:20]} 32. Bb7 {[%clk 0:00:32]}  Nb6 {[%clk 0:00:20]} 33. Bxa6 {[%clk 0:00:32]}  Bb2 {[%clk 0:00:20]} 34. Bxb5 {[%clk 0:00:33]}  Bxa3 {[%clk 0:00:20]} 35. f4 {[%clk 0:00:31]}  Bxb4 {[%clk 0:00:19]} 36. Bf2 {[%clk 0:00:32]}  Nd5 {[%clk 0:00:20]} 37. g3 {[%clk 0:00:32]}  d6 {[%clk 0:00:19]} 38. exd6 {[%clk 0:00:33]}  Bxd6 {[%clk 0:00:20]} 39. Bc4 {[%clk 0:00:33]}  g6 {[%clk 0:00:19]} 40. Bd4 {[%clk 0:00:32]}  Kf8 {[%clk 0:00:19]} 41. Kf2 {[%clk 0:00:33]}  Ke7 {[%clk 0:00:19]} 42. Kf3 {[%clk 0:00:33]}  Kd7 {[%clk 0:00:20]} 43. Ke4 {[%clk 0:00:34]}  Ne7 {[%clk 0:00:20]} 44. Bf6 {[%clk 0:00:33]}  Nf5 {[%clk 0:00:19]} 45. Kf3 {[%clk 0:00:34]}  Bc5 {[%clk 0:00:20]} 46. Bd3 {[%clk 0:00:34]}  Nd6 {[%clk 0:00:14]} 47. g4 {[%clk 0:00:34]}  hxg4+ {[%clk 0:00:13]} 48. Kxg4 {[%clk 0:00:35]}  Ne8 {[%clk 0:00:13]} 49. Bc3 {[%clk 0:00:35]}  Be7 {[%clk 0:00:13]} 50. h5 {[%clk 0:00:35]}  f5+ {[%clk 0:00:14]} 51. Kh3 {[%clk 0:00:31]}  gxh5 {[%clk 0:00:14]} 52. Be2 {[%clk 0:00:32]}  Bf6 {[%clk 0:00:13]} 53. Be1 {[%clk 0:00:32]}  Ng7 {[%clk 0:00:12]} 54. Bh4 {[%clk 0:00:32]}  Ke7 {[%clk 0:00:12]} 55. Bf2 {[%clk 0:00:31]}  Kf7 {[%clk 0:00:12]} 56. Bc5 {[%clk 0:00:30]}  Kg6 {[%clk 0:00:12]} 57. Bf8 {[%clk 0:00:30]}  Ne8 {[%clk 0:00:12]} 58. Bc5 {[%clk 0:00:30]}  Nc7 {[%clk 0:00:13]} 59. Bc4 {[%clk 0:00:28]}  Nd5 {[%clk 0:00:13]} 60. Kg3 {[%clk 0:00:28]}  Bd8 {[%clk 0:00:13]} 61. Kf3 {[%clk 0:00:27]}  Bc7 {[%clk 0:00:13]} 62. Bxd5 {[%clk 0:00:23]}  exd5 {[%clk 0:00:13]} 63. Be7 {[%clk 0:00:24]}  Bb6 {[%clk 0:00:13]} 64. Bh4 {[%clk 0:00:24]}  Kf7 {[%clk 0:00:13]} 65. Ke2 {[%clk 0:00:24]}  Bc5 {[%clk 0:00:13]} 66. Kd3 {[%clk 0:00:24]}  Ke6 {[%clk 0:00:13]} 67. Bg5 {[%clk 0:00:25]}  Be7 {[%clk 0:00:13]} 68. Bh6 {[%clk 0:00:22]}  h4 {[%clk 0:00:14]} 0-1


[Site "https://www.chess.com"]